bitfinex/quotes_SOLUSD_20250607
["timestamp","ask_amount","ask_price","bid_price","bid_amount"]
[1749280390130,17.27102021,151.89,151.86,2.42616129]
[1749280390316,17.27102021,151.89,151.85,130.12]
[1749280390512,17.27102021,151.89,151.86,2.42618286]
[1749280390721,17.27102021,151.89,151.85,130.12]
[1749280391810,17.27102021,151.89,151.86,2.42617146]
[1749280392005,6.58327847,151.9,151.85,130.12]
[1749280392318,10.68715474,151.89,151.86,2.42590793]
[1749280392519,10.68715474,151.89,151.85,130.12]
[1749280392835,6.1555,151.91,151.87,10.68715474]
[1749280392836,23.4255789,151.91,151.87,10.68715474]
[1749280393133,17.2700789,151.91,151.88,2.42541763]
[1749280393327,17.2700789,151.91,151.87,10.68715474]
[1749280393706,17.2700789,151.91,151.88,2.42427086]
[1749280393922,17.2700789,151.91,151.87,10.68715474]
[1749280394210,17.2700789,151.91,151.88,2.42432749]
[1749280394525,10.68715474,151.89,151.85,130.12]
[1749280394725,10.68715474,151.89,151.79,27.24178354]
[1749280394726,10.68715474,151.86,151.82,40.62]
[1749280394927,10.68715474,151.85,151.82,40.62]
[1749280395135,10.68715474,151.85,151.83,2.42661175]
[1749280395430,10.68715474,151.85,151.82,40.62]
[1749280395729,10.68715474,151.85,151.83,2.42655893]
[1749280395929,10.68715474,151.85,151.82,40.62]
[1749280396134,6.58587987,151.84,151.83,2.42639517]
[1749280396336,6.58587987,151.84,151.83,2.42639666]
[1749280396533,17.27303461,151.84,151.83,2.42639666]
[1749280396830,17.27303461,151.84,151.83,2.42656188]
[1749280397135,17.27303461,151.84,151.83,2.42647896]
[1749280397336,17.27303461,151.84,151.83,2.42643657]
[1749280397540,17.27303461,151.84,151.83,2.42643651]
[1749280397733,17.27303461,151.84,151.81,40.62]
[1749280397932,17.27303461,151.84,151.82,2.42673481]
[1749280398124,17.27303461,151.84,151.81,40.62]
[1749280398439,17.27303461,151.84,151.82,2.42640111]
[1749280398635,17.27303461,151.84,151.81,40.62]
[1749280398834,17.27303461,151.84,151.82,2.42638204]
[1749280399034,17.27303461,151.84,151.81,40.62]
[1749280399235,17.27303461,151.84,151.82,2.42638997]
[1749280399436,6.58501251,151.86,151.81,40.62]
[1749280399642,10.68715474,151.84,151.82,43.04649267]
[1749280399821,10.68715474,151.84,151.82,40.62]
[1749280400935,17.2734224,151.84,151.82,40.62]
[1749280401644,17.27216725,151.86,151.82,10.68715474]
[1749280401817,17.27216725,151.86,151.83,2.42329991]
[1749280402121,17.77216725,151.86,151.82,10.68715474]
[1749280402321,17.77216725,151.86,151.83,2.42329923]
[1749280402621,17.77216725,151.86,151.82,10.68715474]
[1749280403141,17.77216725,151.86,151.83,2.42327915]
[1749280403344,17.77216725,151.86,151.81,51.30715474]
[1749280403345,10.68715474,151.85,151.81,51.30715474]
[1749280403519,10.68715474,151.85,151.82,2.42220406]
[1749280403840,10.68715474,151.84,151.81,130.12]
[1749280405028,6.58631364,151.83,151.82,2.42258314]
[1749280405223,6.58631364,151.83,151.81,130.12]
[1749280406741,6.58631364,151.83,151.81,89.5]
[1749280406948,6.58631364,151.83,151.81,130.1]
[1749280411725,10.68715474,151.84,151.81,130.1]
[1749280413249,6.84557537,151.84,151.81,40.6]
[1749280413741,6.84557537,151.83,151.81,40.6]
[1749280414131,8.49007537,151.82,151.79,10.62]
[1749280414328,8.49007537,151.82,151.8,40.6]
[1749280414329,6.84557537,151.81,151.8,40.6]
[1749280414535,8.49007537,151.82,151.8,40.6]
[1749280414946,8.49007537,151.82,151.79,89.5]
[1749280415126,8.49007537,151.82,151.79,130.1]
[1749280415319,6.58718134,151.81,151.79,130.1]
[1749280415746,18.93039273,151.82,151.79,130.1]
[1749280419234,12.34352441,151.82,151.79,130.1]
[1749280419430,1.6445,151.82,151.79,140.79902441]
[1749280419847,8.23139068,151.82,151.79,140.79902441]
[1749280420052,18.93041509,151.82,151.79,130.1]
[1749280421758,36.69902441,151.84,151.79,140.79902441]
[1749280421939,26.0,151.83,151.79,140.79902441]
[1749280423537,36.69902441,151.83,151.79,140.79902441]
[1749280423853,43.28540691,151.83,151.79,140.79902441]
[1749280426136,43.28540691,151.83,151.79,130.1]
[1749280426359,10.69902441,151.82,151.79,130.1]
[1749280426846,10.69902441,151.81,151.79,89.5]
[1749280427058,10.69902441,151.81,151.79,130.1]
[1749280428054,6.58761528,151.8,151.79,89.5]
[1749280428787,17.28663969,151.8,151.79,89.5]
[1749280430552,17.28663969,151.8,151.78,89.5]
[1749280433262,10.69902441,151.79,151.77,40.6]
[1749280434171,10.69902441,151.78,151.77,89.5]
[1749280434370,6.58746533,151.81,151.77,100.19902441]
[1749280434571,6.58746533,151.81,151.78,51.29902441]
[1749280435741,44.84102582,151.82,151.78,51.29902441]
[1749280435946,44.84102582,151.82,151.78,140.79902441]
[1749280436160,1.5551,151.82,151.79,10.69902441]
[1749280436365,6.58643209,151.83,151.79,10.69902441]
[1749280436576,6.58643209,151.83,151.8,40.6]
[1749280438244,14.97262795,151.86,151.81,10.69902441]
[1749280438545,40.47262795,151.86,151.83,10.69902441]
[1749280438777,40.47262795,151.86,151.83,40.6]
[1749280438956,25.17165236,151.86,151.83,40.6]
[1749280439375,26.0,151.85,151.83,40.6]
[1749280440358,26.0,151.85,151.83,130.1]
[1749280440558,26.0,151.85,151.83,140.79902441]
[1749280440788,0.5,151.84,151.83,140.79902441]
[1749280442155,0.5,151.84,151.83,51.29902441]
[1749280442845,7.08587987,151.84,151.83,40.6]
[1749280443051,0.5,151.84,151.83,51.29902441]
[1749280443555,0.5,151.84,151.83,40.6]
[1749280444486,0.5,151.84,151.83,51.29902441]
[1749280444983,6.5842549,151.88,151.83,53.72162889]
[1749280445157,6.5842549,151.88,151.86,10.69902441]
[1749280445361,6.5842549,151.88,151.86,51.27902441]
[1749280445987,8.1673,151.9,151.86,140.77902441]
[1749280446563,14.75061691,151.9,151.86,140.77902441]
[1749280447258,25.44964132,151.9,151.86,140.77902441]
[1749280450979,14.75061691,151.9,151.87,10.69902441]
[1749280451182,14.75061691,151.9,151.87,100.19902441]
[1749280452261,14.75061691,151.9,151.87,89.5]
[1749280452659,25.44964132,151.9,151.87,89.5]
[1749280452856,10.69902441,151.89,151.87,89.5]
[1749280453266,14.75061691,151.9,151.87,89.5]
[1749280453267,10.69902441,151.88,151.87,89.5]
[1749280454480,17.28316978,151.88,151.87,89.5]
[1749280457062,17.28316978,151.88,151.85,89.5]
[1749280457257,10.69902441,151.87,151.85,89.5]
[1749280458286,17.28387666,151.87,151.85,89.5]
[1749280461557,6.58485225,151.87,151.85,89.5]
[1749280465691,6.58371189,151.89,151.85,89.5]
[1749280465866,10.69902441,151.87,151.85,89.5]
[1749280466591,6.58501251,151.86,151.85,89.5]
[1749280468575,17.28403692,151.86,151.84,40.56]
[1749280468791,17.28403692,151.86,151.84,40.54]
[1749280469097,10.69902441,151.85,151.84,89.5]
[1749280469293,6.8441042,151.85,151.84,89.5]
[1749280470473,13.42911671,151.86,151.84,89.5]
[1749280471198,17.27831671,151.86,151.84,89.5]
[1749280474283,6.58501251,151.86,151.84,89.5]
[1749280474501,26.0,151.87,151.84,89.5]
[1749280474686,10.6933042,151.88,151.85,40.54]
[1749280474890,10.6933042,151.88,151.85,130.04]
[1749280475885,6.58457891,151.87,151.85,130.04]
[1749280476304,10.6933042,151.86,151.85,89.5]
[1749280478296,17.27831671,151.86,151.83,40.54]
[1749280478612,10.6933042,151.85,151.83,40.54]
[1749280479610,17.27907749,151.85,151.83,40.54]
[1749280480716,6.58577329,151.85,151.83,40.54]
[1749280481020,10.6933042,151.84,151.83,40.54]
[1749280482307,17.27938313,151.84,151.82,40.54]
[1749280482609,6.58607893,151.84,151.82,40.54]
[1749280486713,6.58607893,151.84,151.82,89.5]
[1749280486917,6.58607893,151.84,151.82,130.04]
[1749280488108,6.58607893,151.84,151.82,89.5]
[1749280488306,6.58607893,151.84,151.82,130.04]
[1749280488798,17.27890414,151.85,151.82,130.04]
[1749280491217,13.43017253,151.85,151.82,130.04]
[1749280494405,6.84457259,151.84,151.82,130.04]
[1749280494915,6.58559994,151.85,151.82,130.04]
[1749280495503,26.0,151.87,151.82,47.38457259]
[1749280495826,26.0,151.87,151.83,9.27278488]
[1749280496021,26.0,151.87,151.83,6.84457259]
[1749280496213,26.0,151.87,151.84,2.42980258]
[1749280496416,26.0,151.87,151.83,6.84457259]
[1749280496608,32.84457259,151.87,151.83,6.84457259]
[1749280497120,6.58501251,151.86,151.84,2.42992812]
[1749280497326,6.58501251,151.86,151.84,89.5]
[1749280498644,6.58501251,151.86,151.85,2.42940514]
[1749280498924,6.58501251,151.86,151.84,89.5]
[1749280501544,6.58471997,151.87,151.84,89.5]
[1749280501840,6.58471997,151.87,151.85,42.94897861]
[1749280502014,6.58471997,151.87,151.85,40.52]
[1749280502618,26.0,151.89,151.86,2.42835835]
[1749280502903,26.0,151.89,151.85,130.02]
[1749280502904,6.58387443,151.89,151.85,130.02]
[1749280503111,39.78840287,151.91,151.87,6.84457259]
[1749280503324,46.63297546,151.91,151.87,96.34457259]
[1749280503715,46.63297546,151.91,151.87,89.5]
[1749280504231,39.78840287,151.91,151.88,40.52]
[1749280504437,46.63297546,151.91,151.88,40.52]
[1749280507420,39.78840287,151.91,151.88,130.02]
[1749280507840,33.20544411,151.91,151.89,6.84457259]
[1749280508146,33.20544411,151.91,151.9,6.84457259]
[1749280508318,6.58212364,151.93,151.9,6.84457259]
[1749280508518,6.58212364,151.93,151.91,40.5]
[1749280510823,6.84457259,151.92,151.9,89.5]
[1749280511028,23.03706999,151.93,151.9,89.5]
[1749280511029,6.84457259,151.91,151.9,89.5]
[1749280511437,6.84457259,151.91,151.87,40.5]
[1749280511638,6.84457259,151.9,151.87,40.5]
[1749280511938,6.84457259,151.91,151.87,40.5]
[1749280512949,13.42784478,151.91,151.87,40.5]
[1749280513134,6.58244157,151.92,151.88,6.84457259]
[1749280513340,6.58244157,151.92,151.88,10.68354543]
[1749280513668,17.265987,151.92,151.88,10.68354543]
[1749280514921,17.265987,151.92,151.87,10.68354543]
[1749280515137,10.68354543,151.91,151.88,40.5]
[1749280516017,17.265987,151.92,151.88,51.18354543]
[1749280516228,17.265987,151.92,151.88,40.5]
[1749280516433,17.265987,151.92,151.88,130.0]
[1749280517019,6.1476,151.93,151.89,10.68354543]
[1749280517240,38.20684543,151.94,151.89,100.18354543]
[1749280517622,44.78875792,151.94,151.89,100.18354543]
[1749280517820,10.68354543,151.93,151.89,100.18354543]
[1749280518061,17.26595722,151.92,151.89,89.5]
[1749280518364,6.58241179,151.92,151.89,89.5]
[1749280518541,17.26595722,151.92,151.89,89.5]
[1749280518923,10.68354543,151.9,151.88,89.5]
[1749280519124,10.68354543,151.89,151.88,130.0]
[1749280519335,10.68354543,151.9,151.88,89.5]
[1749280519918,10.68354543,151.89,151.88,89.5]
[1749280520248,17.26725732,151.89,151.88,89.5]
[1749280522341,17.26725732,151.89,151.87,89.5]
[1749280523021,10.68354543,151.88,151.87,89.5]
[1749280523419,10.68354543,151.88,151.84,100.06]
[1749280523650,10.68354543,151.85,151.84,51.04]
[1749280523949,10.68354543,151.85,151.83,40.48]
[1749280525255,17.2694253,151.84,151.81,89.5]
[1749280525860,6.58501251,151.86,151.81,140.66354543]
[1749280526033,6.58501251,151.86,151.83,10.68354543]
[1749280526234,6.58501251,151.86,151.84,40.48]
[1749280526548,17.26824626,151.87,151.84,40.48]
[1749280526725,10.68354543,151.86,151.84,40.48]
[1749280527148,17.26889221,151.86,151.84,40.48]
[1749280527358,10.68354543,151.85,151.84,40.48]
[1749280528347,10.68354543,151.85,151.82,40.48]
[1749280528672,10.68354543,151.84,151.82,40.48]
[1749280529436,10.68354543,151.84,151.82,40.5]
[1749280529852,17.26947294,151.84,151.82,40.5]
[1749280530245,10.68354543,151.84,151.82,40.5]
[1749280530451,10.68354543,151.85,151.82,40.5]
[1749280531437,17.26865021,151.86,151.82,40.5]
[1749280531638,10.68354543,151.86,151.82,51.18354543]
[1749280532047,27.5425,151.88,151.82,51.18354543]
[1749280532048,12.22604543,151.88,151.83,10.68354543]
[1749280532353,12.22604543,151.88,151.84,10.68354543]
[1749280532556,12.22604543,151.88,151.85,40.48]
[1749280532759,18.81028743,151.88,151.85,40.48]
[1749280532934,10.68354543,151.87,151.85,40.48]
[1749280533637,17.26833236,151.87,151.85,40.48]
[1749280534057,18.81048216,151.88,151.85,129.98]
[1749280534552,8.12693673,151.88,151.85,129.98]
[1749280534746,18.81048216,151.88,151.85,129.98]
[1749280535941,6.5835587,151.9,151.86,10.68354543]
[1749280536135,12.25064543,151.92,151.88,10.68354543]
[1749280536457,1.5671,151.92,151.89,51.16354543]
[1749280537863,8.14966663,151.92,151.89,40.48]
[1749280538266,1.5671,151.92,151.89,51.16354543]
[1749280538758,32.58212717,151.93,151.9,10.68354543]
[1749280538945,17.2651722,151.94,151.9,10.68354543]
[1749280539747,17.2651722,151.94,151.89,140.66354543]
[1749280540137,6.58162677,151.94,151.89,140.66354543]
[1749280540337,17.2651722,151.94,151.9,10.68354543]
[1749280543058,17.2651722,151.94,151.9,100.18354543]
[1749280543352,6.58162677,151.94,151.9,100.18354543]
[1749280543949,6.58124462,151.95,151.9,100.18354543]
[1749280544150,17.26479005,151.95,151.91,10.68354543]
[1749280544350,17.26479005,151.95,151.92,40.48]
[1749280545979,6.58124462,151.95,151.92,40.48]
[1749280546170,17.26479005,151.95,151.92,40.48]
[1749280546338,38.25064543,151.96,151.92,40.48]
[1749280546544,44.83140651,151.96,151.92,51.16354543]
[1749280548664,44.83140651,151.96,151.92,40.48]
[1749280548861,10.68354543,151.95,151.92,129.98]
[1749280549767,6.58154534,151.94,151.92,129.98]
[1749280549973,10.68354543,151.93,151.92,129.96]
[1749280550685,6.58154534,151.94,151.92,129.96]
[1749280550867,10.68354543,151.93,151.92,129.96]
[1749280551490,36.68354543,151.93,151.89,40.46]
[1749280551657,10.68354543,151.9,151.89,40.46]
[1749280551976,17.2668239,151.9,151.89,40.46]
[1749280553180,17.2668239,151.9,151.88,89.5]
[1749280553365,17.2668239,151.9,151.88,129.96]
[1749280554869,17.2668239,151.9,151.88,40.46]
[1749280555380,17.2668239,151.9,151.86,100.18354543]
[1749280555561,17.2668239,151.9,151.88,40.46]
[1749280556468,17.26647217,151.91,151.88,40.46]
[1749280557084,6.58292674,151.91,151.88,40.46]
[1749280558487,32.58209719,151.93,151.88,51.14354543]
[1749280558775,43.26564262,151.93,151.89,10.68354543]
[1749280558980,36.68354543,151.93,151.89,10.68354543]
[1749280559179,36.68354543,151.93,151.9,10.68354543]
[1749280559180,26.0,151.93,151.9,10.68354543]
[1749280559383,26.0,151.93,151.91,40.46]
[1749280559887,17.26521222,151.94,151.91,40.46]
[1749280560884,10.68354543,151.93,151.91,40.46]
[1749280562892,6.58241179,151.92,151.91,40.46]
[1749280563738,17.26595722,151.92,151.91,129.96]
[1749280565894,17.26595722,151.92,151.91,89.5]
[1749280566645,6.58241179,151.92,151.91,89.5]
[1749280567622,17.26595722,151.92,151.91,89.5]
[1749280569607,17.26595722,151.92,151.89,129.96]
[1749280570248,6.58192364,151.94,151.91,10.68354543]
[1749280570454,17.26546907,151.94,151.89,140.64354543]
[1749280570655,10.68354543,151.93,151.89,140.64354543]
[1749280570832,10.68354543,151.92,151.89,129.96]
[1749280572060,17.26632018,151.92,151.89,89.5]
[1749280572262,6.58277475,151.92,151.9,40.44]
[1749280574149,17.26566955,151.93,151.9,40.44]
[1749280575554,17.26566955,151.93,151.9,129.94]
[1749280577248,10.68354543,151.92,151.9,129.94]
[1749280577461,10.68354543,151.91,151.9,129.94]
[1749280578955,17.26639053,151.91,151.9,129.94]
[1749280579762,17.26639053,151.91,151.9,89.5]
[1749280581473,17.26639053,151.91,151.88,129.94]
[1749280583366,17.26639053,151.91,151.88,89.5]
[1749280583689,10.68354543,151.89,151.88,129.94]
[1749280583854,10.68354543,151.89,151.88,40.44]
[1749280584057,10.68354543,151.89,151.86,40.44]
[1749280584375,10.68354543,151.89,151.87,2.42978526]
[1749280584682,10.68354543,151.89,151.86,40.44]
[1749280584859,6.58414537,151.88,151.86,40.44]
[1749280585958,6.58414537,151.88,151.84,110.70354543]
[1749280586164,6.58414537,151.88,151.86,40.44]
[1749280586359,17.2676908,151.88,151.86,40.44]
[1749280586672,10.68354543,151.87,151.86,89.5]
[1749280587389,12.24084543,151.87,151.86,89.5]
[1749280587883,56.89049429,151.87,151.82,40.44]
[1749280588087,10.68354543,151.83,151.82,40.44]
[1749280588376,10.68354543,151.83,151.8,100.02]
[1749280588377,6.58674746,151.82,151.81,40.44]
[1749280588975,6.58674746,151.82,151.8,100.02]
[1749280589171,6.58674746,151.82,151.81,40.44]
[1749280589976,6.58674746,151.82,151.8,100.02]
[1749280590182,17.27029289,151.82,151.81,40.44]
[1749280590653,17.27029289,151.82,151.8,140.46]
[1749280590853,10.68354543,151.81,151.8,140.46]
[1749280591075,10.68354543,151.81,151.77,89.5]
[1749280591281,10.68354543,151.8,151.77,89.5]
[1749280591475,10.68354543,151.8,151.78,40.44]
[1749280592153,6.58804927,151.79,151.78,40.44]
[1749280592361,17.27127994,151.8,151.78,40.44]
[1749280595381,17.27127994,151.8,151.77,40.44]
[1749280596592,10.68354543,151.78,151.76,40.46]
[1749280596959,17.2721071,151.78,151.75,100.02]
[1749280597161,17.2721071,151.78,151.75,50.98]
[1749280597562,10.68354543,151.78,151.75,50.98]
[1749280598660,10.68354543,151.78,151.75,10.52]
[1749280598874,10.68354543,151.78,151.75,50.98]
[1749280599471,10.68354543,151.79,151.75,61.66354543]
[1749280600585,10.68354543,151.79,151.75,50.98]
[1749280602179,10.68354543,151.79,151.75,140.48]
[1749280603885,17.27173264,151.79,151.75,140.48]
[1749280605482,10.68354543,151.78,151.75,140.48]
[1749280606090,17.27221746,151.78,151.75,140.48]
[1749280606866,17.27221746,151.78,151.75,100.02]
[1749280607188,17.27221746,151.78,151.75,140.48]
[1749280609275,17.27221746,151.78,151.75,100.02]
[1749280609276,10.68354543,151.77,151.75,100.02]
[1749280609483,10.68354543,151.77,151.75,140.48]
[1749280609677,10.68354543,151.77,151.75,129.96]
[1749280609879,26.0,151.75,151.69,89.5]
[1749280610192,10.68354543,151.74,151.71,40.46]
[1749280610492,10.68354543,151.74,151.69,100.18354543]
[1749280610677,10.68354543,151.74,151.7,40.46]
[1749280611274,17.27417072,151.74,151.67,106.61318203]
[1749280611474,10.68354543,151.73,151.69,10.68354543]
[1749280611695,10.68354543,151.73,151.69,100.18354543]
[1749280613272,17.274516,151.73,151.69,100.18354543]
[1749280613873,17.27380262,151.74,151.7,10.68354543]
[1749280614184,17.27380262,151.74,151.71,40.46]
[1749280614508,1.5398,151.77,151.71,40.46]
[1749280614509,38.22334543,151.77,151.72,10.68354543]
[1749280614687,38.22334543,151.77,151.73,10.68354543]
[1749280614868,12.22334543,151.77,151.74,40.46]
[1749280615812,44.81236793,151.77,151.74,40.46]
[1749280617411,38.22334543,151.77,151.74,40.46]
[1749280617991,44.81234827,151.77,151.74,40.46]
[1749280619811,44.81234827,151.77,151.74,129.96]
[1749280620881,10.68354543,151.76,151.74,129.96]
[1749280622101,6.58978583,151.75,151.74,129.96]
[1749280622305,10.68354543,151.76,151.74,129.96]
[1749280622597,27.5398,151.77,151.74,129.96]
[1749280622598,44.81229074,151.77,151.74,129.96]
[1749280623004,17.27212252,151.78,151.74,140.64354543]
[1749280623311,6.58857709,151.78,151.74,140.64354543]
[1749280623605,36.68354543,151.79,151.74,140.64354543]
[1749280623606,32.58818962,151.79,151.75,10.68354543]
[1749280623987,32.58818962,151.79,151.75,100.18354543]
[1749280624505,26.0,151.79,151.76,10.68354543]
[1749280624691,26.0,151.79,151.77,40.46]
[1749280625426,32.58822146,151.79,151.77,40.46]
[1749280625787,26.0,151.79,151.77,40.46]
[1749280627518,26.0,151.8,151.77,51.14354543]
[1749280628314,26.0,151.8,151.78,10.68354543]
[1749280628608,32.58784389,151.8,151.78,89.5]
[1749280632124,12.33044543,151.89,151.81,0.14216157]
[1749280632337,12.33044543,151.89,151.85,10.68354543]
[1749280632487,12.33044543,151.89,151.85,51.12354543]
[1749280632687,10.68354543,151.88,151.85,40.44]
[1749280633289,18.91425533,151.89,151.85,40.44]
[1749280633487,18.91425533,151.89,151.85,51.12354543]
[1749280634697,18.91425533,151.89,151.85,40.44]
[1749280637583,18.91425533,151.89,151.85,129.94]
[1749280641291,10.68354543,151.88,151.85,129.94]
[1749280643389,6.58457891,151.87,151.85,129.94]
[1749280643587,17.26812434,151.87,151.85,129.94]
[1749280643817,10.68354543,151.86,151.85,89.5]
[1749280644032,10.68354543,151.86,151.83,40.42]
[1749280644315,10.68354543,151.84,151.83,40.42]
[1749280644493,10.68354543,151.84,151.83,129.92]
[1749280645219,17.2694253,151.84,151.83,129.92]
[1749280645609,26.0,151.81,151.77,40.42]
[1749280645830,10.68354543,151.83,151.79,10.68354543]
[1749280646105,10.68354543,151.83,151.8,40.42]
[1749280646828,17.27009199,151.83,151.8,40.42]
[1749280652235,10.68354543,151.82,151.8,40.42]
[1749280652405,10.68354543,151.81,151.8,40.42]
[1749280652617,10.68354543,151.81,151.78,40.42]
[1749280653126,6.58761528,151.8,151.78,40.42]
[1749280653520,10.68354543,151.79,151.78,129.92]
[1749280653733,17.27116071,151.8,151.78,129.92]
[1749280656210,10.68354543,151.8,151.78,129.92]
[1749280657321,17.27155356,151.8,151.78,129.92]
[1749280657940,17.27155356,151.8,151.78,89.5]
[1749280658249,10.68354543,151.79,151.78,89.5]
[1749280658544,10.68354543,151.79,151.77,40.42]
[1749280658944,10.68354543,151.79,151.76,40.42]
[1749280659659,6.58848333,151.78,151.76,40.42]
[1749280660746,10.68354543,151.78,151.75,40.42]
[1749280661125,10.68354543,151.79,151.75,40.42]
[1749280661325,10.68354543,151.79,151.75,51.10354543]
[1749280661753,10.68354543,151.78,151.75,40.42]
[1749280662453,10.68354543,151.78,151.74,100.18354543]
[1749280662636,10.68354543,151.78,151.75,40.42]
[1749280662953,6.58891744,151.77,151.75,40.42]
[1749280663138,42.46810676,151.81,151.75,129.92]
[1749280663333,10.68354543,151.78,151.75,129.92]
[1749280664245,10.68354543,151.77,151.75,129.92]
[1749280664419,1.5543,151.79,151.75,100.18354543]
[1749280664620,12.23784543,151.79,151.75,100.18354543]
[1749280664859,34.14243081,151.79,151.75,140.60354543]
[1749280665028,44.82597624,151.79,151.75,140.60354543]
[1749280665927,44.82597624,151.79,151.76,40.42]
[1749280667138,38.23784543,151.79,151.76,40.42]
[1749280667749,44.82602421,151.79,151.76,40.42]
[1749280670241,44.82602421,151.79,151.76,129.92]
[1749280671935,10.68354543,151.77,151.76,129.92]
[1749280672332,10.68354543,151.78,151.76,129.92]
[1749280672544,10.68354543,151.77,151.76,129.92]
[1749280672732,10.68354543,151.77,151.76,89.5]
[1749280673052,10.68354543,151.78,151.76,89.5]
[1749280673748,10.68354543,151.77,151.76,89.5]
[1749280674254,17.27246287,151.77,151.76,89.5]
[1749280674633,17.27246287,151.77,151.73,40.42]
[1749280674951,10.68354543,151.74,151.71,100.0]
[1749280675264,10.68354543,151.74,151.72,40.42]
[1749280675934,17.27407399,151.74,151.72,40.42]
[1749280676140,17.27407399,151.74,151.71,10.5]
[1749280676429,10.68354543,151.73,151.71,50.92]
[1749280676630,17.27407399,151.74,151.71,50.92]
[1749280677942,17.27345442,151.75,151.71,50.92]
[1749280679052,36.68354543,151.76,151.71,68.19497768]
[1749280679430,10.68354543,151.77,151.73,10.68354543]
[1749280679637,10.68354543,151.77,151.74,40.42]
[1749280681646,17.27247289,151.77,151.74,40.42]
[1749280682167,10.68354543,151.77,151.74,40.42]
[1749280682750,17.27247078,151.77,151.74,40.42]
[1749280684849,6.58892535,151.77,151.74,40.42]
[1749280685041,17.27247078,151.77,151.74,129.92]
[1749280688442,10.68354543,151.76,151.74,129.92]
[1749280688853,10.68354543,151.75,151.74,129.92]
[1749280689466,10.68354543,151.75,151.74,89.5]
[1749280689669,10.68354543,151.75,151.72,89.5]
[1749280689848,10.68354543,151.73,151.68,100.18354543]
[1749280690040,10.68354543,151.72,151.69,42.8578419]
[1749280690374,17.27472672,151.72,151.69,40.42]
[1749280690840,8.18409686,151.74,151.7,13.12098358]
[1749280691041,8.18393916,151.74,151.71,2.43721627]
[1749280691241,8.18393916,151.74,151.7,10.68354543]
[1749280691442,1.5936,151.74,151.7,10.68354543]
[1749280691640,43.27344374,151.75,151.71,2.4370832]
[1749280691865,43.27344374,151.75,151.72,40.42]
[1749280692469,10.68354543,151.74,151.72,40.42]
[1749280692975,17.27384823,151.74,151.72,40.42]
[1749280693179,6.5903028,151.74,151.72,40.42]
[1749280693356,17.27384823,151.74,151.72,40.42]
[1749280694450,10.68354543,151.73,151.72,40.42]
[1749280694673,10.68354543,151.73,151.7,129.92]
[1749280695265,17.27384823,151.74,151.71,2.440543]
[1749280695578,17.27384823,151.74,151.7,129.92]
[1749280695775,10.68354543,151.73,151.71,2.44030761]
[1749280695955,10.68354543,151.73,151.7,129.92]
[1749280696160,6.5903028,151.74,151.7,129.92]
[1749280696363,10.68354543,151.73,151.7,129.92]
[1749280697164,10.68354543,151.73,151.71,2.44006535]
[1749280697369,10.68354543,151.73,151.7,129.92]
[1749280697581,17.27420565,151.73,151.7,129.92]
[1749280698080,6.59066022,151.73,151.7,129.92]
[1749280699462,6.59066022,151.73,151.71,2.44110073]
[1749280699658,6.59066022,151.73,151.71,89.5]
[1749280703568,17.27376554,151.74,151.71,89.5]
[1749280704182,6.59022011,151.74,151.71,100.18354543]
[1749280704366,6.59022011,151.74,151.71,89.5]
[1749280704795,10.68354543,151.73,151.71,89.5]
[1749280705699,17.27458092,151.73,151.71,89.5]
[1749280707206,6.59033462,151.74,151.71,100.18354543]
[1749280707488,6.59033462,151.74,151.71,89.5]
[1749280708488,43.27343004,151.75,151.71,100.18354543]
[1749280708788,49.81418503,151.77,151.73,10.68354543]
[1749280708955,49.81418503,151.77,151.73,51.10354543]
[1749280709272,49.81418503,151.77,151.73,40.42]
[1749280709961,43.22494543,151.77,151.73,51.10354543]
[1749280710163,8.18217159,151.78,151.73,51.10354543]
[1749280710363,8.18217159,151.78,151.75,10.68354543]
[1749280710663,17.27125884,151.8,151.76,13.12332132]
[1749280710971,6.58726201,151.81,151.78,10.68354543]